bitfinex/quotes_SOLUSD_20251201
["timestamp","ask_amount","ask_price","bid_price","bid_amount"]
[1764600776286,14.34123834,126.43,126.41,3.58]
[1764600776481,0.71,126.43,126.41,11.49070277]
[1764600776694,11.48752861,126.47,126.41,11.49070277]
[1764600776695,13.63123834,126.46,126.41,25.81194111]
[1764600776898,0.85216158,126.49,126.44,13.63123834]
[1764600777113,14.34123834,126.48,126.44,13.63123834]
[1764600777318,13.63123834,126.47,126.42,14.32123834]
[1764600777522,13.63123834,126.46,126.41,42.12080511]
[1764600777808,13.63123834,126.46,126.42,13.63123834]
[1764600778004,14.34123834,126.47,126.43,7.90951514]
[1764600778203,22.24838219,126.47,126.43,7.90951514]
[1764600778400,0.71,126.46,126.43,7.90951514]
[1764600778709,14.34123834,126.47,126.43,41.31454134]
[1764600778886,0.71,126.47,126.43,42.00454134]
[1764600779294,0.71,126.47,126.44,3.58]
[1764600780026,0.71,126.47,126.44,11.48830099]
[1764600780515,14.34123834,126.47,126.44,11.48830099]
[1764600780937,13.63123834,126.46,126.44,11.48830099]
[1764600781108,13.63123834,126.47,126.43,13.63123834]
[1764600781306,9.51994492,126.48,126.43,13.63123834]
[1764600781512,13.63123834,126.47,126.43,13.63123834]
[1764600781719,14.34123834,126.47,126.43,13.63123834]
[1764600782020,0.71,126.47,126.43,14.32123834]
[1764600782398,0.71,126.47,126.43,9.37459803]
[1764600782599,9.39459803,126.47,126.43,8.68459803]
[1764600782799,9.39459803,126.47,126.42,39.95009083]
[1764600783034,9.39459803,126.47,126.42,40.64009083]
[1764600783201,0.71,126.46,126.42,39.95009083]
[1764600783401,9.39459803,126.46,126.42,40.64009083]
[1764600784724,0.71,126.46,126.42,40.64009083]
[1764600785213,7.90576331,126.49,126.43,0.69]
[1764600785407,1e-08,126.49,126.46,8.68459803]
[1764600785607,1e-08,126.49,126.47,8.68459803]
[1764600785913,1e-08,126.49,126.46,9.37459803]
[1764600786306,9.39459804,126.49,126.45,8.68459803]
[1764600786629,9.39459804,126.49,126.45,0.69]
[1764600786805,0.71000001,126.49,126.46,8.68459803]
[1764600787005,1e-08,126.49,126.46,9.37459803]
[1764600787298,1e-08,126.49,126.46,16.59183258]
[1764600787516,1e-08,126.49,126.46,17.28183258]
[1764600788121,1e-08,126.49,126.46,16.59183258]
[1764600788431,8.68459803,126.48,126.46,7.90723455]
[1764600788607,9.39459804,126.49,126.46,7.90723455]
[1764600789831,0.71000001,126.49,126.46,7.90723455]
[1764600790135,17.30059325,126.49,126.45,11.48824769]
[1764600790332,8.68459803,126.48,126.43,12.26459803]
[1764600790506,9.39459803,126.48,126.44,7.90888959]
[1764600790706,9.39459803,126.47,126.44,7.90888959]
[1764600790906,9.39459803,126.47,126.43,11.48948843]
[1764600791123,9.39459803,126.46,126.43,11.48948843]
[1764600791520,17.30232238,126.46,126.43,3.58]
[1764600791725,0.71,126.45,126.42,7.90986242]
[1764600792632,9.39459803,126.45,126.42,7.90986242]
[1764600792936,0.71,126.45,126.42,7.90986242]
[1764600793126,9.39459803,126.45,126.42,7.90986242]
[1764600793733,9.39459803,126.45,126.41,20.86533214]
[1764600794535,8.68459803,126.42,126.37,16.308864]
[1764600794731,8.68459803,126.39,126.34,9.37459803]
[1764600795033,8.68459803,126.35,126.31,28.5992437]
[1764600795202,9.39459803,126.38,126.33,8.68459803]
[1764600795607,9.39459803,126.38,126.34,0.69]
[1764600795832,8.68459803,126.37,126.32,8.68459803]
[1764600796013,0.71,126.37,126.33,0.69]
[1764600796223,8.62211713,126.39,126.34,3.58]
[1764600796423,8.68459803,126.38,126.34,3.58]
[1764600796627,8.68459803,126.38,126.34,4.27]
[1764600797132,9.39459803,126.37,126.32,20.8709654]
[1764600797332,0.71,126.37,126.32,40.66197236]
[1764600797509,8.68459803,126.35,126.32,3.58]
[1764600797709,0.71,126.36,126.32,3.58]
[1764600797911,8.68459803,126.35,126.32,12.18629401]
[1764600798225,27.69445922,126.38,126.33,0.69]
[1764600798226,0.71,126.38,126.33,0.69]
[1764600798535,9.39459803,126.4,126.35,8.68459803]
[1764600798845,8.68459803,126.39,126.35,3.58]
[1764600799139,8.68459803,126.39,126.36,7.9138968]
[1764600799345,3.58,126.42,126.36,37.07323683]
[1764600799346,0.71,126.42,126.36,37.07323683]
[1764600799529,8.68459803,126.41,126.37,0.69]
[1764600799713,8.68459803,126.4,126.37,0.69]
[1764600800060,8.68459803,126.39,126.36,7.9138968]
[1764600800220,46.71,126.43,126.36,7.9138968]
[1764600800537,8.68459803,126.39,126.36,7.9138968]
[1764600801038,8.68459803,126.39,126.36,8.6038968]
[1764600802641,8.62096144,126.41,126.36,8.6038968]
[1764600802844,8.68459803,126.39,126.36,8.6038968]
[1764600803030,9.39459803,126.4,126.36,8.6038968]
[1764600803940,9.39459803,126.4,126.36,7.9138968]
[1764600803941,8.68459803,126.39,126.36,7.9138968]
[1764600804321,0.71,126.4,126.36,8.6038968]
[1764600804522,8.68459803,126.39,126.36,7.9138968]
[1764600805033,9.39459803,126.39,126.36,7.9138968]
[1764600806319,3.84066934,126.39,126.36,7.9138968]
[1764600806730,0.71,126.39,126.36,7.9138968]
[1764600806929,3.84066934,126.39,126.36,7.9138968]
[1764600807129,3.13066934,126.38,126.36,7.9138968]
[1764600807346,3.79066934,126.38,126.36,7.9138968]
[1764600807923,3.13066934,126.38,126.36,7.9138968]
[1764600809050,3.13066934,126.39,126.36,7.9138968]
[1764600809264,78.29858623,126.42,126.37,3.85066934]
[1764600809265,46.0,126.42,126.37,3.85066934]
[1764600809433,11.71030854,126.43,126.38,7.43066934]
[1764600809629,3.80066934,126.43,126.38,7.43066934]
[1764600809833,3.80066934,126.43,126.39,0.72]
[1764600810141,3.13066934,126.4,126.38,3.58]
[1764600810459,8.69428598,126.4,126.38,3.58]
[1764600810638,9.36428598,126.4,126.38,3.58]
[1764600810834,9.36428598,126.4,126.36,4.3]
[1764600811146,16.60630433,126.39,126.36,4.3]
[1764600811353,8.69428598,126.38,126.36,3.58]
[1764600811547,0.67,126.38,126.36,3.58]
[1764600811751,9.36428598,126.38,126.36,3.58]
[1764600811949,7.91201835,126.39,126.33,3.58]
[1764600811950,9.36428598,126.37,126.33,3.58]
[1764600812247,9.36428598,126.37,126.33,4.3]
[1764600812248,8.69428598,126.37,126.33,4.3]
[1764600812430,8.69428598,126.37,126.34,0.72]
[1764600812955,8.69428598,126.38,126.34,0.72]
[1764600813126,9.36428598,126.38,126.34,0.72]
[1764600813331,9.36428598,126.38,126.34,8.63480318]
[1764600813727,8.69428598,126.38,126.35,0.72]
[1764600814050,9.36428598,126.37,126.33,12.2156217]
[1764600814222,9.36428598,126.37,126.33,31.28506205]
[1764600814223,8.69428598,126.37,126.33,31.28506205]
[1764600814425,8.69428598,126.38,126.34,9.41428598]
[1764600815250,8.69428598,126.38,126.35,0.72]
[1764600815453,8.69428598,126.38,126.36,7.9138968]
[1764600815831,8.69428598,126.38,126.35,7.91430156]
[1764600816237,8.69428598,126.42,126.37,8.69428598]
[1764600816441,8.69428598,126.42,126.35,7.91430156]
[1764600816442,8.69428598,126.39,126.35,7.91430156]
[1764600816643,8.69428598,126.39,126.35,12.21430156]
[1764600816955,8.69428598,126.42,126.37,8.69428598]
[1764600817333,9.36428598,126.42,126.38,7.9126444]
[1764600817528,8.69428598,126.4,126.36,7.91349265]
[1764600817741,8.69428598,126.4,126.36,17.32777863]
[1764600817945,9.36428598,126.39,126.36,7.91349265]
[1764600818144,8.69428598,126.38,126.35,12.21449176]
[1764600818454,8.69428598,126.37,126.32,8.69428598]
[1764600818647,8.69428598,126.36,126.32,11.49606202]
[1764600818961,8.69428598,126.36,126.33,0.72]
[1764600819346,17.27818787,126.36,126.32,11.49606202]
[1764600819653,8.69428598,126.36,126.32,11.49606202]
[1764600819858,8.69428598,126.34,126.32,3.58]
[1764600820326,27.69876695,126.36,126.31,0.2]
[1764600820327,9.36428598,126.33,126.31,0.2]
[1764600820529,8.69428598,126.32,126.31,0.2]
[1764600820735,0.67,126.33,126.31,0.2]
[1764600821160,9.36428598,126.33,126.31,0.2]
[1764600821344,0.67,126.33,126.31,0.2]
[1764600821547,9.36428598,126.33,126.31,0.2]
[1764600822429,8.69428598,126.32,126.31,0.2]
[1764600823450,25.42063368,126.32,126.31,0.2]
[1764600823652,26.09063368,126.32,126.31,0.2]
[1764600824144,8.69428598,126.32,126.31,0.2]
[1764600825342,9.36428598,126.32,126.31,0.2]
[1764600825849,26.09063368,126.32,126.31,0.2]
[1764600826633,26.23279525,126.32,126.31,0.2]
[1764600827253,29.81279525,126.32,126.31,0.2]
[1764600827448,38.50708123,126.32,126.31,0.2]
[1764600827653,29.81279525,126.32,126.31,0.2]
[1764600828262,29.67063368,126.32,126.31,0.2]
[1764600828460,16.7263477,126.32,126.31,0.2]
[1764600828765,26.09063368,126.32,126.31,0.2]
[1764600829350,17.3963477,126.32,126.31,0.2]
[1764600829552,26.09063368,126.32,126.31,0.2]
[1764600830239,26.23279525,126.32,126.31,0.2]
[1764600830642,34.92708123,126.32,126.23,17.028864]
[1764600830839,8.69428598,126.25,126.22,8.64267469]
[1764600831267,8.69428598,126.26,126.23,0.72]
[1764600831844,8.69428598,126.25,126.22,0.72]
[1764600832675,8.69428598,126.24,126.22,0.72]
[1764600832875,8.69428598,126.24,126.21,8.12303456]
[1764600833049,8.69428598,126.24,126.21,0.92]
[1764600833247,9.36428598,126.24,126.21,8.84326048]
[1764600834247,0.67,126.24,126.21,8.84326048]
[1764600834455,9.36428598,126.24,126.21,8.84326048]
[1764600834654,17.28584505,126.24,126.21,0.2]
[1764600834854,8.69428598,126.23,126.21,0.2]
[1764600835864,8.69428598,126.23,126.21,8.12330243]
[1764600836047,8.69428598,126.23,126.21,0.2]
[1764600836249,8.69428598,126.23,126.21,8.12328729]
[1764600836452,3.13848712,126.23,126.21,8.12328729]
[1764600836778,3.13848712,126.24,126.21,8.80328729]
[1764600836975,3.85848712,126.24,126.21,8.80328729]
[1764600837273,3.85848712,126.24,126.21,8.12328729]
[1764600837470,3.85848712,126.24,126.21,0.2]
[1764600837471,11.7800232,126.24,126.21,0.2]
[1764600837771,3.13848712,126.25,126.21,8.12325394]
[1764600837967,3.13848712,126.26,126.22,0.68]
[1764600838350,18.24406051,126.26,126.22,0.68]
[1764600838870,8.71411559,126.24,126.21,0.2]
[1764600839049,8.71411559,126.23,126.21,0.2]
[1764600839951,0.86216157,126.27,126.21,8.80305732]
[1764600840269,8.80994492,126.29,126.23,8.71411559]
[1764600840473,8.71411559,126.3,126.25,8.71411559]
[1764600840890,8.71411559,126.3,126.26,8.60016473]
[1764600840891,17.35177196,126.3,126.26,8.60016473]
[1764600841375,8.71411559,126.29,126.26,8.60016473]
[1764600841592,8.63584979,126.33,126.28,8.71411559]
[1764600841769,8.63584979,126.33,126.26,7.92016473]
[1764600841770,17.52406051,126.34,126.29,9.39411559]
[1764600842279,0.72,126.33,126.29,0.68]
[1764600842485,14.35875742,126.33,126.26,27.72057657]
[1764600842667,14.35875742,126.33,126.28,13.63875742]
[1764600842869,14.35875742,126.32,126.28,7.91891035]
[1764600843072,22.44870234,126.31,126.27,0.68]
[1764600843268,23.16870234,126.31,126.27,0.68]
[1764600843983,31.08610945,126.31,126.27,8.59936954]
[1764600844294,7.91667443,126.32,126.28,13.63875742]
[1764600844478,7.91667443,126.32,126.28,14.31875742]
[1764600844802,14.35875742,126.33,126.29,0.68]
[1764600844962,8.80994492,126.31,126.27,21.55812696]
[1764600845265,13.63875742,126.3,126.27,7.91936954]
[1764600845466,8.80994492,126.29,126.24,36.79203224]
[1764600845660,0.72,126.31,126.26,13.63875742]
[1764600845661,13.63875742,126.31,126.26,13.63875742]
[1764600845857,14.35875742,126.31,126.26,13.63875742]
[1764600846063,14.35875742,126.3,126.26,0.68]
[1764600846268,13.63875742,126.29,126.25,27.72262573]
[1764600846473,14.35875742,126.29,126.25,28.40262573]
[1764600846776,22.44870234,126.29,126.25,7.92064554]
[1764600846957,14.35875742,126.28,126.25,7.92064554]
[1764600847160,14.35875742,126.28,126.24,8.60137198]
[1764600847363,14.35875742,126.27,126.24,7.92137198]
[1764600847592,14.35875742,126.27,126.23,11.50184911]
[1764600847891,14.35875742,126.27,126.23,12.18184911]
[1764600848075,8.63991027,126.27,126.23,12.18184911]
[1764600848274,22.27866769,126.27,126.23,12.18184911]
[1764600848463,8.63991027,126.27,126.23,12.18184911]
[1764600848664,22.27866769,126.27,126.23,12.18184911]
[1764600850490,8.80994492,126.29,126.25,13.63875742]
[1764600850993,17.44827602,126.29,126.25,14.31875742]
[1764600851190,16.72827602,126.29,126.26,0.68]
[1764600851389,0.72,126.3,126.26,14.31875742]
[1764600851583,0.72,126.3,126.26,0.68]
[1764600851779,14.35875742,126.3,126.26,0.68]
[1764600851994,22.27643583,126.3,126.26,0.68]
[1764600852195,14.35875742,126.29,126.24,0.68]
[1764600852397,13.63875742,126.28,126.25,0.68]
[1764600852695,7.91729761,126.31,126.26,13.63875742]
[1764600852886,22.27605503,126.31,126.26,13.63875742]
[1764600853198,13.63875742,126.3,126.26,0.68]
[1764600853400,13.63875742,126.29,126.26,0.68]
[1764600853585,14.35875742,126.3,126.26,14.31875742]
[1764600853785,14.35875742,126.3,126.26,0.68]
[1764600854094,31.08641038,126.3,126.26,8.59964079]
[1764600854296,17.44765296,126.3,126.26,0.68]
[1764600854495,17.44765296,126.3,126.26,8.60007762]
[1764600854705,0.72,126.29,126.26,8.60007762]
[1764600855005,14.35875742,126.29,126.26,7.92007762]
[1764600855701,13.63875742,126.29,126.26,8.60007762]
[1764600855878,14.35875742,126.29,126.26,7.92007762]
[1764600856197,14.35875742,126.29,126.25,14.31875742]
[1764600856198,13.63875742,126.28,126.25,0.68]
[1764600856502,21.55705977,126.29,126.26,0.68]
[1764600856705,22.27705977,126.29,126.26,0.68]
[1764600857201,16.72780246,126.3,126.26,0.68]
[1764600857402,30.36655988,126.3,126.26,0.68]
[1764600857585,22.2759247,126.31,126.26,14.31875742]
[1764600857780,13.63875742,126.3,126.27,0.68]
[1764600858099,14.35875742,126.3,126.27,0.68]
[1764600858299,23.16870234,126.31,126.27,8.59894074]
[1764600858490,0.72,126.3,126.27,8.59894074]
[1764600858881,5.61792576,126.3,126.26,7.92009489]
[1764600859096,5.61792576,126.3,126.26,8.60009489]
[1764600859299,5.61792576,126.3,126.27,0.68]
[1764600859800,4.89792576,126.31,126.27,5.57792576]
[1764600859997,5.61792576,126.31,126.27,5.57792576]
[1764600860300,0.72,126.31,126.28,7.91891035]
[1764600860510,5.61792576,126.31,126.28,7.91891035]
[1764600860802,16.72642386,126.32,126.29,0.68]
[1764600861011,7.91647894,126.32,126.29,5.57792576]
[1764600861493,7.91564338,126.34,126.3,5.57792576]
[1764600861693,7.91466961,126.35,126.31,4.89792576]
[1764600861896,7.91466961,126.35,126.32,0.68]
[1764600862100,13.53259537,126.35,126.32,0.68]
[1764600862487,13.53259537,126.35,126.32,8.59627752]
[1764600863198,8.63466961,126.35,126.32,8.59627752]
[1764600863596,13.53259537,126.35,126.32,8.59627752]
[1764600863796,13.53259537,126.35,126.32,7.91627752]
[1764600864414,8.63466961,126.35,126.32,13.49420328]
[1764600864586,8.63466961,126.35,126.32,8.59627752]
[1764600864911,4.89792576,126.36,126.32,8.59627752]
[1764600865106,5.61792576,126.36,126.32,8.59627752]
[1764600865308,5.61792576,126.36,126.32,13.49420328]
[1764600866199,5.61792576,126.36,126.32,12.81420328]
[1764600866592,4.89792576,126.35,126.32,8.58627752]
[1764600866792,5.61792576,126.36,126.32,8.58627752]
[1764600867315,0.72,126.36,126.32,13.48420328]
[1764600867514,12.81119631,126.37,126.33,0.67]
[1764600867696,8.63293158,126.38,126.34,4.89792576]
[1764600867900,13.53085734,126.38,126.34,4.89792576]
[1764600868115,13.53085734,126.38,126.34,5.58792576]
[1764600868412,14.41787068,126.41,126.35,4.27]
[1764600868591,5.60792576,126.4,126.36,4.89792576]
[1764600868791,5.60792576,126.4,126.35,9.16792576]
[1764600868991,13.51962335,126.4,126.36,8.6038968]
[1764600869412,55.85786918,126.43,126.39,4.89792576]
[1764600869413,17.42946006,126.43,126.39,4.89792576]
[1764600869714,17.42946006,126.43,126.37,0.69]
[1764600869715,5.60792576,126.42,126.37,5.58792576]
[1764600869889,4.89792576,126.41,126.37,5.58792576]
[1764600870089,5.60792576,126.41,126.37,4.89792576]
[1764600870285,8.80994492,126.43,126.38,0.69]
[1764600870513,5.60792576,126.42,126.38,0.69]
[1764600870811,4.89792576,126.41,126.38,0.69]
[1764600871218,5.60792576,126.42,126.38,8.60256792]
[1764600871387,13.51816361,126.42,126.38,8.60256792]
[1764600871592,0.71,126.41,126.38,8.60256792]
[1764600871815,5.60792576,126.42,126.38,8.60256792]
[1764600872115,13.51810498,126.42,126.38,8.6025502]
[1764600872517,5.60792576,126.41,126.38,0.69]
[1764600872902,5.60792576,126.41,126.37,4.89792576]
[1764600872903,5.60792576,126.4,126.36,0.69]
[1764600873235,5.60792576,126.4,126.36,13.50181667]
[1764600873726,4.89792576,126.4,126.36,33.28655867]
[1764600874024,4.89792576,126.38,126.35,3.58]
[1764600874427,4.89792576,126.37,126.34,0.69]
[1764600874629,5.60792576,126.38,126.34,5.58792576]
[1764600874915,4.89792576,126.37,126.34,0.69]
[1764600875213,4.89792576,126.38,126.35,0.69]
[1764600875413,17.07961144,126.4,126.35,13.50228577]
[1764600875718,5.60792576,126.39,126.35,13.50228577]
[1764600875910,4.89792576,126.37,126.33,0.69]
[1764600876220,4.89792576,126.37,126.33,13.50356382]
[1764600876419,13.62995883,126.37,126.33,22.23559689]
[1764600876717,13.62995883,126.38,126.34,14.31995883]
[1764600876895,14.33995883,126.38,126.34,14.31995883]
[1764600877096,13.62995883,126.38,126.35,0.69]
[1764600877420,8.62206931,126.39,126.35,8.60402922]
[1764600877628,22.25202814,126.39,126.35,8.60402922]
[1764600877921,22.25202,126.39,126.36,0.69]
[1764600878522,22.25202,126.39,126.35,7.91402922]
[1764600878724,22.25202,126.39,126.35,8.60402922]
[1764600878937,14.33995883,126.38,126.35,0.69]
[1764600879426,13.62995883,126.38,126.35,8.60445462]
[1764600879725,13.62995883,126.37,126.34,7.91490039]
[1764600879929,13.62995883,126.37,126.34,8.60490039]
[1764600880408,14.33995883,126.37,126.34,7.91490039]
[1764600880609,13.62995883,126.35,126.33,27.70428777]
[1764600880804,13.62995883,126.35,126.33,8.60577614]
[1764600881707,14.33995883,126.35,126.33,7.91577614]
[1764600881909,14.33995883,126.36,126.33,7.91577614]
[1764600882209,14.33995883,126.37,126.33,8.60577614]
[1764600882409,13.62995883,126.36,126.33,8.60577614]
[1764600882610,14.33995883,126.36,126.33,8.60577614]
[1764600883410,0.71,126.36,126.33,8.60577614]
[1764600883610,14.33995883,126.36,126.33,8.60577614]
[1764600884711,25.10325618,126.37,126.33,7.91577614]
[1764600885013,25.10325618,126.37,126.34,8.60510053]
[1764600885208,12.18329735,126.37,126.34,8.60510053]
[1764600886645,53.91249063,126.39,126.35,14.31995883]
[1764600886935,68.25244946,126.39,126.36,7.9138968]
[1764600887338,13.62995883,126.37,126.34,7.91473184]
[1764600887839,13.62995883,126.37,126.34,8.60473184]
[1764600888038,17.89995883,126.38,126.34,7.91473184]
[1764600888340,17.18995883,126.4,126.36,13.62995883]
[1764600888837,17.89995883,126.4,126.37,0.69]
[1764600889041,17.89995883,126.4,126.37,8.60313045]
[1764600889532,17.89995883,126.4,126.36,7.91384297]
[1764600889533,13.62995883,126.38,126.36,7.91384297]
[1764600890162,14.33995883,126.37,126.28,8.80994492]
[1764600890336,3.56,126.36,126.31,0.69]
[1764600890513,13.62995883,126.36,126.31,17.87995883]
[1764600890836,59.62995883,126.38,126.33,13.62995883]
[1764600891140,59.62995883,126.38,126.33,21.54538531]
[1764600891141,60.33995883,126.38,126.33,21.54538531]
[1764600891435,68.25264168,126.38,126.34,0.69]
[1764600891634,13.62995883,126.37,126.34,0.69]
[1764600891848,8.95210649,126.36,126.31,16.308864]
[1764600892019,8.95210649,126.36,126.29,0.69]
[1764600892020,0.14216157,126.34,126.29,0.69]
[1764600892339,13.62995883,126.31,126.29,0.69]
[1764600892551,13.62995883,126.3,126.25,4.25]
[1764600892714,13.62995883,126.27,126.24,0.69]
[1764600892914,8.80994492,126.28,126.24,0.69]
[1764600893211,22.43990375,126.28,126.24,0.69]
[1764600893436,23.14990375,126.28,126.24,0.69]
[1764600894329,8.80994492,126.28,126.24,14.31995883]
[1764600894528,9.51994492,126.28,126.24,22.24120769]
[1764600894727,23.14990375,126.28,126.24,8.61124886]
[1764600895124,8.80994492,126.28,126.24,7.92141951]
[1764600895367,75.0,126.32,126.26,13.62995883]
[1764600895368,12.51210649,126.32,126.26,13.62995883]
[1764600895529,13.62995883,126.28,126.23,14.31995883]
[1764600895737,13.62995883,126.25,126.22,16.308864]
[1764600896055,13.62995883,126.24,126.21,0.2]
[1764600896253,19.868864,126.27,126.22,14.29995883]
[1764600896254,8.80994492,126.26,126.22,14.29995883]
[1764600896568,3.56,126.29,126.25,13.62995883]
[1764600896729,13.62995883,126.3,126.26,13.62995883]
[1764600897046,30.60882283,126.31,126.26,21.54955102]
[1764600897355,17.85995883,126.31,126.27,0.67]
[1764600897730,7.91620421,126.33,126.28,13.62995883]
[1764600897927,0.67,126.34,126.3,13.62995883]
[1764600898235,14.29995883,126.34,126.3,13.62995883]
[1764600898438,0.67,126.34,126.3,13.62995883]
[1764600898636,25.10458011,126.35,126.27,3.56]
[1764600898637,3.56,126.35,126.31,14.29995883]
[1764600898839,4.23,126.35,126.28,0.67]
[1764600899149,12.14456039,126.35,126.31,13.62995883]
[1764600899661,16.308864,126.36,126.31,7.9167024]
[1764600899833,7.91312733,126.38,126.34,13.62995883]
[1764600900151,37.85195016,126.38,126.33,13.62995883]
[1764600900335,13.62995883,126.37,126.33,13.62995883]
[1764600900536,0.67,126.37,126.33,14.29995883]
[1764600900734,8.58353362,126.37,126.33,14.29995883]
[1764600901239,41.99666883,126.37,126.33,14.29995883]
[1764600901637,41.99666883,126.37,126.32,13.62995883]
[1764600901638,0.67,126.36,126.32,13.62995883]
[1764600901849,0.67,126.36,126.32,14.29995883]
[1764600902458,41.32666883,126.37,126.31,11.47698298]
[1764600902459,27.69671,126.37,126.33,9.36944638]
[1764600902661,17.28393172,126.36,126.31,20.84642936]
[1764600903034,17.39443026,126.36,126.32,9.36944638]
[1764600903346,26.09387664,126.36,126.32,9.36944638]
[1764600903548,17.39443026,126.36,126.32,9.36944638]
[1764600904463,26.09387664,126.36,126.32,0.67]
[1764600904856,17.39443026,126.36,126.32,9.36944638]
[1764600905359,0.67,126.35,126.32,0.67]
[1764600905663,26.09387664,126.36,126.32,0.67]
[1764600905860,17.39443026,126.36,126.32,9.36944638]
[1764600906064,7.91448534,126.36,126.33,9.36944638]
[1764600906262,8.58448534,126.36,126.33,8.69944638]
[1764600906570,8.58448534,126.36,126.32,7.9159974]
[1764600906571,40.73189959,126.4,126.35,8.69944638]
[1764600906742,0.67,126.43,126.39,8.69944638]
[1764600907073,7.91010046,126.43,126.4,9.36944638]
[1764600907243,7.91010046,126.43,126.41,8.69944638]
[1764600907442,7.91010046,126.43,126.4,9.36944638]
[1764600907955,7.91010046,126.43,126.4,0.67]
[1764600908353,0.67,126.42,126.39,7.91157969]
[1764600908549,0.67,126.42,126.37,20.45206981]
[1764600908550,9.36944638,126.42,126.38,7.9126444]
[1764600909056,8.69944638,126.42,126.38,7.9126444]
[1764600909359,11.47010046,126.43,126.39,9.36944638]
[1764600909566,11.47010046,126.43,126.4,8.69944638]
[1764600909764,0.1,126.44,126.41,8.69944638]
[1764600909969,8.67889214,126.44,126.4,17.28035222]
[1764600910148,0.77,126.44,126.4,17.28035222]
[1764600910964,0.1,126.44,126.41,9.36944638]
[1764600911173,0.1,126.44,126.39,3.56]
[1764600911174,17.37858317,126.44,126.39,3.56]
[1764600911342,17.37858317,126.44,126.4,0.67]
[1764600911542,0.1,126.44,126.4,9.36944638]
[1764600912049,0.1,126.44,126.41,0.67]
[1764600912751,9.46944638,126.44,126.39,8.69944638]
[1764600913064,9.46944638,126.44,126.4,0.67]
[1764600913266,0.1,126.44,126.41,8.69944638]
[1764600913642,0.1,126.44,126.41,9.36944638]
[1764600914042,9.46944638,126.44,126.39,7.91201835]
[1764600914239,9.46944638,126.44,126.39,9.36944638]
[1764600914473,9.46944638,126.44,126.4,0.67]
[1764600914474,0.67,126.43,126.4,0.67]
[1764600914642,8.79944638,126.44,126.4,0.67]
[1764600914844,9.46944638,126.44,126.4,0.67]
[1764600915271,9.36944638,126.43,126.38,53.37236606]
[1764600915562,0.67,126.43,126.39,9.36944638]
[1764600915769,9.36944638,126.43,126.39,9.36944638]
[1764600915955,9.36944638,126.43,126.4,7.9113924]
[1764600917271,0.67,126.43,126.4,7.9113924]
[1764600917474,9.36944638,126.43,126.4,7.9113924]
[1764600918074,17.27916168,126.43,126.4,7.9113924]
[1764600918265,17.27916168,126.43,126.39,8.58175127]
[1764600918468,11.70853897,126.43,126.39,8.58175127]
[1764600918655,3.12882367,126.42,126.39,8.58201437]
[1764600919075,3.12882367,126.43,126.39,7.91201437]
[1764600919385,11.70833881,126.43,126.39,8.58201437]
[1764600919552,11.70833881,126.43,126.39,11.71083804]
[1764600919553,0.67,126.43,126.39,11.71083804]
[1764600920062,3.79882367,126.43,126.39,8.58201437]
[1764600920261,11.70845358,126.43,126.4,0.67]
[1764600920464,17.27099165,126.43,126.39,8.58201437]
[1764600920667,8.69136174,126.42,126.39,8.58201437]
[1764600920870,7.90962991,126.43,126.4,0.67]
[1764600921047,16.60099165,126.43,126.4,0.67]
[1764600921244,16.60099165,126.43,126.4,8.58135997]
[1764600921860,7.90962991,126.43,126.4,7.91135997]
[1764600922056,0.1,126.44,126.42,8.69136174]
[1764600922383,0.1,126.44,126.43,9.36136174]
[1764600922755,0.1,126.45,126.44,8.69136174]
[1764600923077,0.1,126.45,126.44,4.23]
[1764600923276,0.1,126.45,126.44,12.92136174]
[1764600923456,0.1,126.45,126.44,20.83025133]
[1764600924063,0.1,126.45,126.44,12.13888959]
[1764600924269,0.1,126.45,126.44,20.83025133]
[1764600925573,0.1,126.45,126.44,20.9724129]
[1764600926753,0.1,126.45,126.44,20.83025133]
[1764600927070,0.1,126.45,126.44,12.13888959]
[1764600927464,0.1,126.45,126.44,20.83025133]
[1764600927772,0.1,126.45,126.44,12.13888959]
[1764600928586,0.1,126.45,126.44,20.83025133]
[1764600932487,0.76,126.45,126.43,7.90938581]
[1764600932677,0.1,126.45,126.43,8.58938581]
[1764600933067,0.1,126.45,126.43,7.90938581]
[1764600933388,0.1,126.45,126.41,4.24]
[1764600933389,9.45136174,126.45,126.41,4.24]
[1764600933594,8.79136174,126.45,126.41,3.56]
[1764600933780,8.69136174,126.45,126.42,0.68]